Cogmind - Beta 14 @@@ ROGUE MODE // 2024.10.26 @ 15:48:49 Player: delta76 Result: Destroyed by G-47 Trooper with Particle Gun Performance ------------- Evolutions (2) 1000 Regions Visited (3) 600 Robots Destroyed (15) 75 Value Destroyed (383) 383 Prototype IDs (2) 40 Alien Tech Used (0) 0 Bonus (0) 0 TOTAL SCORE: 2098 Bonus ------- None Cogmind --------- Core Integrity 0/550 Matter 194/300 Energy 49/100 System Corruption 8% Temperature Warm (184) Movement Hovering (60) Location -8/Materials Parts ------- > --- POWER (2) -------- (None) > --- PROPULSION (3) --- Improved Hover Unit > --- UTILITY (3) ------ (None) > --- WEAPON (3) ------- (None) > --- INVENTORY (5) ---- Improved Heat Sink Seismic Detector Hacking Suite Shotgun Peak State ------------ > --- POWER ------------ Light Ion Engine > --- PROPULSION ------- Compact Wheel > --- UTILITY ---------- Small Storage Unit Sensor Array Targeting Computer > --- WEAPON ----------- Field Laser Ion Cannon Ion Cannon > --- INVENTORY -------- Improved Heat Sink Seismic Detector Light Armor Plating Hacking Suite Heavy Assault Rifle Shotgun Light Cannon Mini Grenade Launcher [Rating: 15] Favorites ----------- Power Light Ion Engine Engine Light Ion Engine Propulsion Compact Wheel Wheel Compact Wheel Hover Unit Improved Hover Unit Utility Small Storage Unit Device Sensor Array Storage Small Storage Unit Processor Targeting Computer Protection Light Armor Plating Weapon Small Laser Energy Gun Small Laser Energy Cannon Ion Cannon Ballistic Gun Light Assault Rifle Ballistic Cannon Light Cannon Launcher Grenade Launcher Build | -11 -10 -9 -8 ------- Run | Yrd Mat Mat Mat Slots Evolved 4 | . . 2 2 Power 1 | . . . 1 Propulsion 1 | . . . 1 Utility 1 | . . 1 . Weapon 1 | . . 1 . Parts Attached 20 | 6 4 4 6 Power 3 | 1 1 . 1 Engine 3 | 1 1 . 1 Core . | . . . . Reactor . | . . . . Propulsion 3 | 2 . . 1 Treads . | . . . . Leg . | . . . . Wheel 2 | 2 . . . Hover 1 | . . . 1 Flight . | . . . . Utility 4 | 1 1 1 1 Device 1 | . 1 . . Storage 1 | 1 . . . Processor 1 | . . 1 . Hackware . | . . . . Protection 1 | . . . 1 Artifact . | . . . . Weapon 10 | 2 2 3 3 Energy Gun 3 | 1 1 . 1 Energy Cannon 2 | . . . 2 Ballistic Gun 3 | 1 . 2 . Ballistic Cannon 1 | . . 1 . Launcher 1 | . 1 . . Special Weapon . | . . . . Impact Weapon . | . . . . Slashing Weapon . | . . . . Piercing Weapon . | . . . . Special Melee Weapon . | . . . . Unidentified Prototypes . | . . . . Parts Lost 10 | . . 2 8 Power 2 | . . 1 1 Propulsion 2 | . . 1 1 Utility 3 | . . . 3 Weapon 3 | . . . 3 Highest Loss Streak 7 | . . 2 7 To Critical Strikes . | . . . . Average Slot Usage (%) 88 | . 94 98 59 Engine 10 | . 11 11 6 Wheel 20 | . 28 21 5 Device 10 | . 11 11 7 Storage 11 | . 14 11 8 Processor 5 | . . 10 7 Energy Gun 10 | . 11 11 7 Energy Cannon 2 | . . . 11 Ballistic Gun 10 | . 14 11 2 Ballistic Cannon 4 | . . 10 2 Launcher 1 | . 2 . . Peak Build Rating 15 | 6 8 11 15 Average Rating 8 | 4 6 10 11 On Entrance 5 | . 6 8 9 Naked Turns 8 | . . . 8 Heaviest Build 24 | 12 15 16 24 Greatest Support 32 | 32 32 32 16 Greatest Overweight (x) 7 | . . . 7 Average Overweight (x) . | . . . . Largest Inventory Capacity 8 | 8 8 8 8 Average Capacity 7 | 6 8 8 7 Most Carried 8 | 1 6 6 8 Average Carried 4 | . 3 5 5 Final Capacity 8 | 8 8 8 5 Final Carried 6 | 1 6 6 4 Class Distribution -------------------- 52% | Gunner 47% | Mutant Dominant Class ---------------- Mutant | -10/Materials Gunner | -9/Materials Gunner | -8/Materials Resources | -11 -10 -9 -8 ----------- Run | Yrd Mat Mat Mat Matter Collected 506 | 210 148 132 16 Remotely . | . . . . Salvage Created 418 | . 88 227 103 Parts 35 | . 10 16 9 Haulers Intercepted . | . . . . Recyclers Shooed 1 | . . 1 . Parts Field Recycled . | . . . . Retrieved Matter . | . . . . Parts Self-Destructed . | . . . . Prevented . | . . . . Kills | -11 -10 -9 -8 ------- Run | Yrd Mat Mat Mat Combat Hostiles Destroyed 9 | . 2 5 2 Guns 4 | . . 3 1 Cannons 3 | . . 2 1 AOE 2 | . 2 . . Classes Destroyed 7 | . 3 1 3 Worker 1 | . . . 1 Builder 1 | . . . 1 Operator 2 | . 2 . . Watcher 2 | . 1 1 . Swarmer 2 | . . . 2 Grunt 5 | . 2 3 . Sentry 2 | . . 2 . Best Kill Streak 3 | . 3 2 2 Combat Bots Only 2 | . 2 2 2 Max Kills in Single Turn 1 | . 1 1 1 Gunslinging . | . . . . Exploded 1 | . 1 . . Melee . | . . . . Uniques/NPCs Destroyed . | . . . . Combat | -11 -10 -9 -8 -------- Run | Yrd Mat Mat Mat Hostile Shots Fired 143 | . 5 34 104 Missed 26 | . . 8 18 Damage Taken 1551 | . 103 345 1103 Core 586 | . 2 25 559 Absorbed by Shields . | . . . . Core Remaining (%) 97 | 100 99 93 . Volleys Fired 43 | . 11 21 11 Largest 3 | . 2 3 3 Hottest 183 | . 60 98 183 Shots Fired 112 | . 22 59 31 Gun 66 | . 17 38 11 Cannon 41 | . . 21 20 Launcher 5 | . 5 . . Special . | . . . . Kinetic 55 | . 11 42 2 Thermal 52 | . 6 17 29 Explosive 5 | . 5 . . Electromagnetic . | . . . . Robot Hit Streak 7 | . 4 7 6 Robot Miss Streak 6 | . 1 4 6 Penetration Max . | . . . . Secondary Targets . | . . . . Shots Hit Robots 55 | . 12 30 13 Core Hits 27 | . 11 11 5 Critical Kills . | . . . . Critical Parts Destroyed . | . . . . Critical Strikes . | . . . . Melee Attacks . | . . . . Impact . | . . . . Slashing . | . . . . Piercing . | . . . . Sneak Attacks . | . . . . Combat Hostiles . | . . . . Follow-up Attacks . | . . . . Damage Inflicted 1132 | . 343 459 330 Guns 457 | . 77 264 116 Cannons 405 | . . 195 210 Explosions 261 | . 261 . . Melee . | . . . . Ramming 9 | . 5 . 4 Kinetic 430 | . 31 382 17 Thermal 432 | . 46 77 309 Explosive 261 | . 261 . . Electromagnetic . | . . . . Impact . | . . . . Slashing . | . . . . Piercing . | . . . . Highest Corruption 8 | . 1 . 8 Average Corruption 3 | . 1 . 5 Corruption Purged . | . . . . Corruption Blocked . | . . . . Effects 1 | . . . 1 Matter Fused 1 | . . . 1 Overload Shots . | . . . . Overflow Damage . | . . . . Projectiles . | . . . . Explosions . | . . . . Melee . | . . . . Knockbacks 1 | . . . 1 Impact 1 | . . . 1 Kinetic . | . . . . Secondary . | . . . . Self-Inflicted Damage 31 | . 29 . 2 Shots 2 | . 2 . . Rammed 2 | . 1 . 1 Targets Rammed 2 | . 1 . 1 Kicked . | . . . . Crushed . | . . . . Highest Temperature 469 | . 33 162 469 Average Temperature 135 | . 14 56 262 Received Heat Transfer 633 | . 42 150 441 Effects 1 | . . . 1 Matter Decay 1 | . . . 1 Siege Activations . | . . . . Robots Corrupted . | . . . . Combat Hostiles . | . . . . Parts Fried . | . . . . Impact Corruptions . | . . . . Robots Melted . | . . . . Combat Hostiles . | . . . . Parts Melted 1 | . . 1 . Heat Transferred 830 | . 100 175 555 Parts Sabotaged . | . . . . Parts Stolen . | . . . . Parts Stripped . | . . . . Power Chain Reactions . | . . . . Alert | -11 -10 -9 -8 ------- Run | Yrd Mat Mat Mat Peak Influence 268 | . 127 268 185 Initial 104 | . . 53 104 Average 124 | . 84 189 132 Maximum Alert Level 1 | . . 1 . Low Security (%) 79 | 100 100 39 100 Level 1 20 | . . 60 . Level 2 . | . . . . Level 3 . | . . . . Level 4 . | . . . . Level 5 . | . . . . High Security . | . . . . Max Security . | . . . . Squads Dispatched 4 | . 1 2 1 Investigation 2 | . . 2 . Extermination . | . . . . Reinforcement 2 | . 1 . 1 Assault . | . . . . Garrison . | . . . . Intercept . | . . . . Searches Triggered . | . . . . Construction Impeded 1 | . . . 1 Haulers Reinforced . | . . . . Active Scanning Responses . | . . . . Cargo Convoy Interrupts . | . . . . Stealth | -11 -10 -9 -8 --------- Run | Yrd Mat Mat Mat Distress Signals 2 | . 1 1 . Communications Jammed . | . . . . Distress Signals . | . . . . Times Spotted 24 | . 5 8 11 Peak Tracking Total 9 | . 2 3 9 Tactical Retreats . | . . . . Traps | -11 -10 -9 -8 ------- Run | Yrd Mat Mat Mat Traps Triggered 1 | . 1 . . Indirectly . | . . . . Trap Hack Attempts . | . . . . Triggered . | . . . . Disarmed . | . . . . Reprogrammed . | . . . . Reused . | . . . . Traps Extracted . | . . . . Installed . | . . . . Triggered . | . . . . Machines | -11 -10 -9 -8 ---------- Run | Yrd Mat Mat Mat Machines Disabled 2 | . . . 2 Max in Single Turn 1 | . . . 1 Machines Repaired . | . . . . Machines Dismantled . | . . . . Machines Sabotaged . | . . . . Overloaded Fab Kills . | . . . . Hacking | -11 -10 -9 -8 --------- Run | Yrd Mat Mat Mat Machines Accessed 7 | . 3 3 1 Terminals 7 | . 3 3 1 Fabricators . | . . . . Repair Stations . | . . . . Recycling Units . | . . . . Scanalyzers . | . . . . Garrison Access . | . . . . Total Hacks 30 | . 14 14 2 Successful 12 | . 4 7 1 Failed 18 | . 10 7 1 Catastrophic 3 | . 2 1 . Database Lockouts . | . . . . Manual 8 | . 4 2 2 Terminals 30 | . 14 14 2 Fabricators . | . . . . Repair Stations . | . . . . Recycling Units . | . . . . Scanalyzers . | . . . . Garrison Access . | . . . . Terminal Hacks 12 | . 4 7 1 Record 2 | . 2 . . Prototype ID Bank 1 | . . 1 . Alert Level 2 | . 1 1 . Locate Traps 1 | . . 1 . Dispatch Records 2 | . . 1 1 Surveillance Status 1 | . . 1 . Assault Status 1 | . . 1 . Zone Layout 2 | . 1 1 . Fabricator Hacks . | . . . . Repair Station Hacks . | . . . . Recycling Unit Hacks . | . . . . Scanalyzer . | . . . . Garrison Access Hacks . | . . . . Unauthorized Hacks . | . . . . Terminals . | . . . . Fabricators . | . . . . Repair Stations . | . . . . Recycling Units . | . . . . Scanalyzers . | . . . . Garrison Access . | . . . . Data Cores Recovered . | . . . . Used . | . . . . Hacking Detections 6 | . 3 2 1 Full Trace Events 5 | . 3 2 . Feedback Events 1 | . 1 . . Corruption 1 | . 1 . . Feedback Blocked . | . . . . Robot Schematics Acquired . | . . . . Robots Built . | . . . . Authchips . | . . . . Time . | . . . . Total Robot Build Rating . | . . . . Part Schematics Acquired . | . . . . Parts Built . | . . . . Authchips . | . . . . Time . | . . . . Total Part Build Rating . | . . . . Parts Repaired . | . . . . Time . | . . . . Parts Recycled . | . . . . Recycled Matter . | . . . . Retrieved Matter . | . . . . Retrieved Components . | . . . . Parts Scanalyzed . | . . . . Part Schematics Acquired . | . . . . Parts Damaged . | . . . . Bothacking | -11 -10 -9 -8 ------------ Run | Yrd Mat Mat Mat Used RIF Installer . | . . . . Robots Hacked . | . . . . Non-combat . | . . . . Combat . | . . . . Robot Hacks Applied . | . . . . Relay Couplers Released . | . . . . Fabnet Peak Effective % . | . . . . Robots Rewired . | . . . . Allies Hacked . | . . . . Hacks Repelled . | . . . . Allies | -11 -10 -9 -8 -------- Run | Yrd Mat Mat Mat Total Allies . | . . . . Largest Group . | . . . . Highest-Rated Group . | . . . . Highest-Rated Ally . | . . . . Total Orders . | . . . . Ally Attacks . | . . . . Total Damage . | . . . . Kills . | . . . . Allies Corrupted . | . . . . Allies Melted . | . . . . Intel | -11 -10 -9 -8 ------- Run | Yrd Mat Mat Mat Robot Analysis Total . | . . . . Derelict Logs Recovered . | . . . . Drone Launches . | . . . . Drone Recoveries . | . . . . Exploration | -11 -10 -9 -8 ------------- Run | Yrd Mat Mat Mat Turns Passed 774 | 52 299 266 157 Spaces Moved 566 | 43 250 191 82 Core 22 | 3 . . 19 Treads . | . . . . Legs . | . . . . Wheels 538 | 40 250 191 57 Hover 6 | . . . 6 Flight . | . . . . Fastest Speed 50 | 50 100 100 50 Average Speed 102 | 96 100 100 116 Slowest Speed 400 | 100 100 100 400 Overloaded Moves . | . . . . Propulsion Burnouts . | . . . . Robots Hopped . | . . . . Cave-ins Triggered . | . . . . Exploration Rate (%) 18 | 3 41 19 11 Regions Visited 3 Branch Regions . Pre-discovered Areas . | . . . . Known Exits Taken . | . . . . Unknown Exits Taken 3 | 1 1 1 . Scrap Searched . | . . . . Spaces Dug . | . . . . Terrain Destroyed 29 | . 28 . 1 Melee . | . . . . Projectile 1 | . . . 1 AOE 28 | . 28 . . Terrain Rammed . | . . . . Walls Destroyed . | . . . . Machines Disabled . | . . . . Actions | -11 -10 -9 -8 --------- Run | Yrd Mat Mat Mat Total 666 | 50 278 219 119 Wait 18 | 1 5 . 12 Move 563 | 42 249 190 82 Hop . | . . . . Pick Up 13 | 1 7 2 3 Fast Attach 10 | 6 1 1 2 Attach 4 | . 2 1 1 Detach . | . . . . Swap 6 | . 1 2 3 Drop 7 | . 1 2 4 Fire 43 | . 11 21 11 Melee . | . . . . Ram 2 | . 1 . 1 Kick . | . . . . Crush . | . . . . Escape Stasis . | . . . . Rewire . | . . . . Trap . | . . . . Miscellaneous . | . . . . Route ------- -11/Scrapyard -10/Materials (discovered 2 exits: *Mat / [*Min]) -9/Materials -8/Materials History --------- Turn | Location | Event 13 | -11/Scrapyard | Discovered new exit (range 16) 53 | -11/Scrapyard | Entered Materials 136 | -10/Materials | Discovered new exit (range 7) 278 | -10/Materials | Discovered new exit (range 8) 315 | -10/Materials | Build established: Mutant 352 | -10/Materials | Entered another Materials area 352 | -9/Materials | Evolved 2 slots: Utility x1, Weapon x1 580 | -9/Materials | Discovered new exit (range 10) 618 | -9/Materials | Entered another Materials area 618 | -8/Materials | Evolved 2 slots: Power x1, Propulsion x1 683 | -8/Materials | Build established: Gunner 762 | -8/Materials | Core integrity fell below 50% 762 | -8/Materials | Released all parts (1) 764 | -8/Materials | Core integrity fell below 20% 775 | -8/Materials | Destroyed by G-47 Trooper with Particle Gun Last Messages --------------- 00751_ Sensor Array destroyed. 00751_ System corrupted by crushing effect (+1). 00754_ Field Laser destroyed. 00754_ Knocked back. 00756_ Overheating: Matter decay (-55). 00758_ Lgt. Armor Plating destroyed. 00758_ Targeting Computer destroyed. 00758_ Ion Cannon destroyed. 00758_ System corrupted by crushing effect (+5). 00758_ System corrupted by crushing effect (+2). 00759_ Ion Cannon destroyed. 00762_ Critical hit (Burn: +37). 00762_ Released Sml. Storage Unit. 00762_ Slammed into G-47 Trooper. 00762_ G-47 Trooper knocked back. 00763_ K-01 Serf collects debris. 00766_ U-05 Engineer builds a Wall. 00770_ Acquired Imp. Hover Unit. 00770_ K-01 Serf collects debris. 00775_ System corrupted: Matter fused (-5). Map ----- +----------------------------------------------------+ | | | | | | | | | | | | | | | | | | | | | | | | | ?????????????????????????????????????????????? | | ?????????????????????????????????????????????? | | ?????????????????????????????????????????????? | | ?????????????????????????????????????????????? | | ?????????????????????????????????????????????? | | ??????????????##?????????????????????????????? | | ??????????????# ?????????????????????????????? | | ?????????????? ????????????????????????????? | | ??????????????# ??????????#?????????????????? | | ??????????????# ????????? #?????????????????? | | ???????##+##### ##+##### #?????????????????? | | ?????? ???????????????????? | | ?????? ?????????????????????? | | ?????????# @#######????????????????? | | ?????????# # #????????????????? | | ?????????# + #????????????????? | | ?????????+ """ g# #????????????????? | | ?????????# """ g + #????????????????? | | ?????????# """ g ## #????????????????? | | ?????????# k g## #????????????????? | | ?????????# ## #????????????????? | | ?????????# ] a=%#####/##????????????????? | | ?????????# [[ !=##### ##????????????????? | | ?????#???# [] g## ###+#########????? | | ?????# ### ] ???? | | ?????# T ???? | | ?????#### = ???? | | ????????# #### ##########+#?????? | | ????????# ##?#######????????????????? | | ????????# #?????????????????????????? | | ????????# +?????????????????????????? | | ????????# ""% # ????????????????????????? | | ????????+ "%% # "???????????????????????? | | ????????# """ #? ???????????????????????? | | ????????###! #? ??????????????????????? | | ??????????# % %#??##?????????????????????? | | ??????????#! ""% #?????????????????????????? | | ??????????# ""%"%#?????????????????????????? | +----------------------------------------------------+ Best States ------------- Heat Dissipation 31 Energy Generation 10 Energy Capacity 250 Matter Stores 300 Matter Capacity 300 Sight Range 16 Robot Scan Range 14 Terrain Scan Density 10 Evasion (%) 41 Targeting Accuracy 5 Item Schematics ----------------- None Robot Schematics ------------------ None Fabricated ------------ Nothing Alien Tech Used ----------------- None Achievements -------------- None Challenges ------------ None Game ------ Seed ReinforcedAerolevThrower Manual? 0 Play Time 00:17:34 Cumulative 2.9 hours Start 2024.10.26 @ 13:51:20 End 2024.10.26 @ 15:48:49 Sessions 1 Manual Loads 0 Difficulty Rogue Special Mode None Game No. 9 Rogue 9 Adventurer 0 Explorer 0 Win Type - Total 0 Types 0/0/0/0/0/0/0/0/0 Lore% 1 Gallery% 8 Achievement% 11 Wizard Run 0 Options --------- Layout 1 ASCII 0 Keyboard 0 Movement Mouse Keybinds 0 Fullscreen 1 Font 24/Smallcaps Map View 50x35 Zoom Use 0% Tactical HUD 1 Map Filters NONE Filters NONE Steam 1 RUN: 12930639-8269-4d28-99f4-ed13d2caf47e